fUST/lending_fUST_20240910
["ID","MTS","AMOUNT","RATE_DAILY","PERIOD"]
[337694016,1725966651075,-151.0,0.00019799,2]
[337694017,1725966651084,-500.0,0.00019799,2]
[337694018,1725966651094,-897.97,0.00019799,2]
[337694019,1725966651107,-897.97,0.00019799,2]
[337694020,1725966651116,-151.0,0.00019799,2]
[337694021,1725966651125,-151.0,0.00019799,2]
[337694022,1725966651135,-151.0,0.00019799,2]
[337694023,1725966651144,-257.184138,0.00019799,2]
[337694024,1725966651154,-257.184138,0.00019799,2]
[337694025,1725966651163,-257.184138,0.00019799,2]
[337694026,1725966651173,-257.184138,0.00019799,2]
[337694027,1725966651183,-257.184138,0.00019799,2]
[337694028,1725966651193,-257.184138,0.00019799,2]
[337694029,1725966651203,-500.0,0.00019799,2]
[337694030,1725966651212,-500.0,0.00019799,2]
[337694031,1725966651222,-500.0,0.00019799,2]
[337694032,1725966651233,-500.0,0.00019799,2]
[337694033,1725966651243,-833.33,0.00019799,2]
[337694034,1725966651252,-500.0,0.00019799,2]
[337694035,1725966651262,-1662.15,0.00019799,2]
[337694036,1725966651272,-923.16,0.00019799,2]
[337694037,1725966651281,-500.0,0.00019799,2]
[337694038,1725966651291,-199.26125585,0.00019799,2]
[337694039,1725966651300,-191.613496,0.00019799,2]
[337694040,1725966651309,-191.613496,0.00019799,2]
[337694041,1725966651319,-191.613496,0.00019799,2]
[337694042,1725966651328,-151.0,0.00019799,2]
[337694043,1725966651337,-151.0,0.00019799,2]
[337694044,1725966651347,-151.0,0.00019799,2]
[337694045,1725966651356,-191.613496,0.00019799,2]
[337694046,1725966651365,-191.613496,0.00019799,2]
[337694047,1725966651374,-191.613496,0.00019799,2]
[337694048,1725966651383,-151.0,0.00019799,2]
[337694049,1725966651393,-151.0,0.00019799,2]
[337694050,1725966651402,-151.0,0.00019799,2]
[337694051,1725966651411,-528.244487,0.00019799,2]
[337694052,1725966651420,-528.244487,0.00019799,2]
[337694054,1725966651429,-528.244487,0.00019799,2]
[337694055,1725966651438,-528.244487,0.00019799,2]
[337694056,1725966651448,-528.244487,0.00019799,2]
[337694057,1725966651457,-528.244487,0.00019799,2]
[337694058,1725966651466,-222.826076,0.00019799,2]
[337694059,1725966651475,-222.826076,0.00019799,2]
[337694060,1725966651485,-222.826076,0.00019799,2]
[337694061,1725966651495,-222.826076,0.00019799,2]
[337694062,1725966651504,-222.826076,0.00019799,2]
[337694063,1725966651513,-222.826076,0.00019799,2]
[337694064,1725966651523,-393.946806,0.00019799,2]
[337694065,1725966651532,-393.946806,0.00019799,2]
[337694066,1725966651541,-393.946806,0.00019799,2]
[337694067,1725966651551,-393.946806,0.00019799,2]
[337694068,1725966651560,-393.946806,0.00019799,2]
[337694069,1725966651569,-393.946806,0.00019799,2]
[337694070,1725966651579,-393.946806,0.00019799,2]
[337694071,1725966651588,-393.946806,0.00019799,2]
[337694072,1725966651597,-439.431304,0.00019799,2]
[337694073,1725966651607,-439.431304,0.00019799,2]
[337694074,1725966651616,-439.431304,0.00019799,2]
[337694075,1725966651626,-439.431304,0.00019799,2]
[337694076,1725966651635,-439.431304,0.00019799,2]
[337694077,1725966651646,-439.431304,0.00019799,2]
[337694078,1725966651655,-439.431304,0.00019799,2]
[337694079,1725966651664,-439.431304,0.00019799,2]
[337694080,1725966651673,-498.631448,0.00019799,2]
[337694081,1725966651682,-498.631448,0.00019799,2]
[337694082,1725966651692,-498.631448,0.00019799,2]
[337694083,1725966651702,-498.631448,0.00019799,2]
[337694084,1725966651711,-498.631448,0.00019799,2]
[337694085,1725966651720,-498.631448,0.00019799,2]
[337694086,1725966651729,-498.631448,0.00019799,2]
[337694087,1725966651738,-498.631448,0.00019799,2]
[337694088,1725966651748,-346.984565,0.00019799,2]
[337694089,1725966651757,-346.984565,0.00019799,2]
[337694090,1725966651767,-346.984565,0.00019799,2]
[337694091,1725966651776,-346.984565,0.00019799,2]
[337694092,1725966651786,-346.984565,0.00019799,2]
[337694093,1725966651795,-346.984565,0.00019799,2]
[337694094,1725966651804,-346.984565,0.00019799,2]
[337694095,1725966651813,-346.984565,0.00019799,2]
[337694096,1725966651822,-498.759595,0.00019799,2]
[337694097,1725966651831,-498.759595,0.00019799,2]
[337694098,1725966651841,-498.759595,0.00019799,2]
[337694099,1725966651850,-498.759595,0.00019799,2]
[337694100,1725966651859,-498.759595,0.00019799,2]
[337694101,1725966651868,-498.759595,0.00019799,2]
[337694102,1725966651877,-498.759595,0.00019799,2]
[337694103,1725966651887,-498.759595,0.00019799,2]
[337694104,1725966651896,-151.0,0.00019799,2]
[337694105,1725966651905,-151.0,0.00019799,2]
[337694106,1725966651914,-151.0,0.00019799,2]
[337694107,1725966651923,-151.0,0.00019799,2]
[337694108,1725966651932,-265.016535,0.00019799,2]
[337694109,1725966651944,-265.016535,0.00019799,2]
[337694110,1725966651954,-265.016535,0.00019799,2]
[337694111,1725966651963,-265.016535,0.00019799,2]
[337694112,1725966651972,-265.016535,0.00019799,2]
[337694113,1725966651981,-265.016535,0.00019799,2]
[337694114,1725966651990,-239.747614,0.00019799,2]
[337694115,1725966651999,-265.016535,0.00019799,2]
[337694116,1725966652008,-239.747614,0.00019799,2]
[337694117,1725966652019,-265.016535,0.00019799,2]
[337694118,1725966652029,-239.747614,0.00019799,2]
[337694119,1725966652038,-239.747614,0.00019799,2]
[337694120,1725966652050,-239.747614,0.00019799,2]
[337694121,1725966652059,-239.747614,0.00019799,2]
[337694122,1725966652068,-239.747614,0.00019799,2]
[337694123,1725966652077,-239.747614,0.00019799,2]
[337694124,1725966652086,-151.0,0.00019799,2]
[337694125,1725966652096,-151.0,0.00019799,2]
[337694126,1725966652109,-151.0,0.00019799,2]
[337694127,1725966652119,-151.0,0.00019799,2]
[337694128,1725966652129,-504.60264265,0.000198,2]
[337694129,1725966652138,-500.0,0.000198,2]
[337694130,1725966652149,-500.0,0.000198,2]
[337694131,1725966652158,-504.00187416,0.000198,2]
[337694132,1725966652168,-500.0,0.000198,2]
[337694133,1725966652178,-503.32013149,0.000198,2]
[337694134,1725966652187,-500.0,0.000198,2]
[337694135,1725966652199,-503.96445369,0.000198,2]
[337694136,1725966652208,-169.179371,0.000198,2]
[337694137,1725966652218,-169.179371,0.000198,2]
[337694138,1725966652228,-169.179371,0.000198,2]
[337694139,1725966652238,-169.179371,0.000198,2]
[337694140,1725966652249,-500.0,0.000198,2]
[337694141,1725966652259,-500.0,0.000198,2]
[337694142,1725966652269,-500.0,0.000198,2]
[337694143,1725966652280,-500.0,0.000198,2]
[337694144,1725966652289,-151.69351,0.000198,2]
[337694145,1725966652299,-500.0,0.000198,2]
[337694146,1725966652309,-251.32109623,0.000198,2]
[337694147,1725966652319,-500.0,0.000198,2]
[337694148,1725966652329,-500.0,0.000198,2]
[337694149,1725966652339,-500.0,0.000198,2]
[337694150,1725966652348,-502.81964789,0.000198,2]
[337694151,1725966652358,-500.0,0.000198,2]
[337694152,1725966652367,-500.0,0.000198,2]
[337694153,1725966652377,-500.0,0.000198,2]
[337694154,1725966652386,-500.0,0.000198,2]
[337694155,1725966652396,-501.36403863,0.000198,2]
[337694156,1725966652405,-500.0,0.000198,2]
[337694157,1725966652415,-500.0,0.000198,2]
[337694158,1725966652425,-500.0,0.000198,2]
[337694159,1725966652435,-500.0,0.000198,2]
[337694160,1725966652446,-511.950369,0.000198,2]
[337694161,1725966652454,-511.950369,0.000198,2]
[337694162,1725966652464,-511.950369,0.000198,2]
[337694163,1725966652474,-511.950369,0.000198,2]
[337694164,1725966652483,-511.950369,0.000198,2]
[337694165,1725966652494,-511.950369,0.000198,2]
[337694166,1725966652503,-184.399387,0.000198,2]
[337694167,1725966652513,-184.399387,0.000198,2]
[337694168,1725966652522,-184.399387,0.000198,2]
[337694169,1725966652532,-184.399387,0.000198,2]
[337694170,1725966652542,-151.0,0.000198,2]
[337694171,1725966652551,-151.0,0.000198,2]
[337694172,1725966652561,-897.97,0.000198,2]
[337694173,1725966652571,-897.97,0.000198,2]
[337694174,1725966652582,-897.97,0.000198,2]
[337694175,1725966652592,-897.97,0.000198,2]
[337694176,1725966652602,-897.97,0.000198,2]
[337694177,1725966652613,-156.890136,0.000198,2]
[337694178,1725966652623,-257.184138,0.000198,2]
[337694179,1725966652632,-257.184138,0.000198,2]
[337694180,1725966652643,-257.184138,0.000198,2]
[337694181,1725966652653,-257.184138,0.000198,2]
[337694182,1725966652663,-191.613496,0.000198,2]
[337694183,1725966652672,-191.613496,0.000198,2]
[337694184,1725966652682,-151.0,0.000198,2]
[337694185,1725966652692,-151.0,0.000198,2]
[337694186,1725966652702,-191.613496,0.000198,2]
[337694187,1725966652712,-191.613496,0.000198,2]
[337694188,1725966652722,-151.0,0.000198,2]
[337694189,1725966652731,-151.0,0.000198,2]
[337694190,1725966652743,-528.244487,0.000198,2]
[337694191,1725966652753,-528.244487,0.000198,2]
[337694192,1725966652765,-528.244487,0.000198,2]
[337694193,1725966652776,-528.244487,0.000198,2]
[337694194,1725966652786,-222.826076,0.000198,2]
[337694195,1725966652797,-222.826076,0.000198,2]
[337694196,1725966652808,-222.826076,0.000198,2]
[337694197,1725966652819,-222.826076,0.000198,2]
[337694198,1725966652829,-393.946806,0.000198,2]
[337694199,1725966652839,-393.946806,0.000198,2]
[337694200,1725966652849,-439.431304,0.000198,2]
[337694201,1725966652859,-439.431304,0.000198,2]
[337694202,1725966652869,-498.631448,0.000198,2]
[337694203,1725966652879,-498.631448,0.000198,2]
[337694204,1725966652889,-346.984565,0.000198,2]
[337694205,1725966652898,-346.984565,0.000198,2]
[337694206,1725966652907,-498.759595,0.000198,2]
[337694207,1725966652917,-498.759595,0.000198,2]
[337694208,1725966652926,-151.0,0.000198,2]
[337694209,1725966652937,-635.32601183,0.000198,2]
[337694210,1725966652948,-316.53372983,0.000198,2]
[337694211,1725966652958,-500.0,0.00019801,2]
[337694212,1725966652968,-500.0,0.00019801,2]
[337694213,1725966652978,-500.0,0.00019801,2]
[337694214,1725966652987,-897.97,0.00019801,2]
[337694215,1725966652997,-897.97,0.00019801,2]
[337694216,1725966653007,-897.97,0.00019801,2]
[337694217,1725966653016,-897.97,0.00019801,2]
[337694218,1725966653026,-897.97,0.00019801,2]
[337694219,1725966653035,-897.97,0.00019801,2]
[337694220,1725966653044,-897.97,0.00019801,2]
[337694221,1725966653053,-897.97,0.00019801,2]
[337694222,1725966653063,-500.0,0.00019801,2]
[337694223,1725966653073,-479.71299412,0.00019801,2]
[337694224,1725966653082,-265.016535,0.00019801,2]
[337694225,1725966653092,-265.016541,0.00019801,2]
[337694226,1725966653105,-239.747614,0.00019801,2]
[337694227,1725966653114,-239.747608,0.00019801,2]
[337694228,1725966653123,-151.0,0.00019801,2]
[337694229,1725966653132,-151.0,0.00019802,2]
[337694230,1725966653143,-151.0,0.00019802,2]
[337694231,1725966653151,-169.179371,0.00019802,2]
[337694232,1725966653291,-169.179371,0.00019802,2]
[337694233,1725966653302,-169.179371,0.00019802,2]
[337694234,1725966653312,-169.179371,0.00019802,2]
[337694235,1725966653321,-511.950369,0.00019802,2]
[337694236,1725966653331,-511.950369,0.00019802,2]
[337694237,1725966653340,-511.950369,0.00019802,2]
[337694238,1725966653349,-511.950369,0.00019802,2]
[337694239,1725966653359,-184.399387,0.00019802,2]
[337694240,1725966653368,-184.399387,0.00019802,2]
[337694241,1725966653378,-184.399387,0.00019802,2]
[337694242,1725966653387,-184.399387,0.00019802,2]
[337694243,1725966653396,-151.0,0.00019802,2]
[337694244,1725966653405,-151.0,0.00019802,2]
[337694245,1725966653415,-466.96801468,0.00019827,2]
[337694246,1725966653424,-393.946806,0.00019828,2]
[337694247,1725966653434,-393.946806,0.00019828,2]
[337694248,1725966653444,-439.431304,0.00019828,2]
[337694249,1725966653453,-439.431312,0.00019828,2]
[337694250,1725966653463,-498.631448,0.00019828,2]
[337694251,1725966653473,-498.631454,0.00019828,2]
[337694252,1725966653482,-346.984565,0.00019828,2]
[337694253,1725966653491,-346.984565,0.00019828,2]
[337694254,1725966653501,-498.759595,0.00019828,2]
[337694255,1725966653511,-498.759595,0.00019828,2]
[337694256,1725966653521,-20712.2432796,0.00019828,2]
[337694257,1725966653531,-169.179371,0.000199,2]
[337694258,1725966653540,-169.179371,0.000199,2]
[337694259,1725966653550,-150.112233,0.000199,2]
[337694260,1725966653559,-150.112233,0.000199,2]
[337694261,1725966653569,-150.112233,0.000199,2]
[337694262,1725966653578,-150.112233,0.000199,2]
[337694263,1725966653588,-150.112233,0.000199,2]
[337694264,1725966653597,-151.0,0.00019926,2]
[337694265,1725966653608,-897.97,0.00019926,2]
[337694266,1725966653617,-500.0,0.00019927,2]
[337694267,1725966653627,-257.184138,0.00019927,2]
[337694268,1725966653637,-897.97,0.00019927,2]
[337694269,1725966653647,-897.97,0.00019927,2]
[337694270,1725966653656,-257.184138,0.00019927,2]
[337694271,1725966653666,-222.826076,0.00019927,2]
[337694272,1725966653676,-222.826076,0.00019927,2]
[337694273,1725966653686,-184.399387,0.00019928,2]
[337694274,1725966653697,-184.399387,0.00019928,2]
[337694275,1725966653707,-151.0,0.00019928,2]
[337694276,1725966653717,-897.97,0.00019928,2]
[337694277,1725966653726,-897.97,0.00019928,2]
[337694278,1725966653737,-897.97,0.00019928,2]
[337694279,1725966653747,-897.97,0.00019928,2]
[337694280,1725966653757,-897.97,0.00019928,2]
[337694281,1725966653768,-898.0565561,0.00019928,2]
[337694282,1725966653778,-191.613496,0.00019928,2]
[337694283,1725966653787,-151.0,0.00019928,2]
[337694284,1725966653797,-191.613486,0.00019928,2]
[337694285,1725966653806,-151.0,0.00019928,2]
[337694286,1725966653815,-528.244487,0.00019928,2]
[337694287,1725966653825,-528.244493,0.00019928,2]
[337694288,1725966653836,-151.0,0.00019928,2]
[337694289,1725966653846,-150.01,0.00019929,2]
[337694290,1725966653858,-12040.80565269,0.00019929,2]
[337694291,1725966653867,-151.0,0.00019929,2]
[337694292,1725966653876,-169.179371,0.00019929,2]
[337694293,1725966653885,-169.179371,0.00019929,2]
[337694294,1725966653895,-511.950369,0.00019929,2]
[337694295,1725966653905,-511.950369,0.00019929,2]
[337694296,1725966653916,-197.41939089,0.00019938,2]
[337694297,1725966653927,-2928.3,0.00019972,2]
[337694298,1725966653937,-6391.78,0.00019972,2]
[337694299,1725966653947,-1227.31,0.00019972,2]
[337694300,1725966653959,-1425.58,0.00019972,2]
[337694301,1725966653968,-1171.5,0.00019972,2]
[337694302,1725966653977,-1013.17,0.00019972,2]
[337694303,1725966653986,-500.0,0.00019973,2]
[337694304,1725966653996,-6786.39,0.00019973,2]
[337694305,1725966654005,-4639.22,0.00019973,2]
[337694306,1725966654015,-1039.49,0.00019973,2]
[337694307,1725966654024,-1375.4,0.00019973,2]
[337694308,1725966654033,-4281.23,0.00019973,2]
[337694309,1725966654042,-1573.31,0.00019973,2]
[337694310,1725966654051,-821.53,0.00019973,2]
[337694311,1725966654061,-500.0,0.00019973,2]
[337694312,1725966654074,-510.02,0.00019973,2]
[337694313,1725966654084,-500.0,0.00019973,2]
[337694314,1725966654095,-1822.6,0.00019973,2]
[337694315,1725966654109,-1625.26,0.00019973,2]
[337694316,1725966654117,-2183.78,0.00019973,2]
[337694317,1725966654127,-500.0,0.00019973,2]
[337694318,1725966654136,-55809.84,0.00019973,2]
[337694319,1725966654146,-2427.47,0.00019973,2]
[337694320,1725966654155,-1965.13,0.00019973,2]
[337694321,1725966654165,-500.0,0.00019974,2]
[337694322,1725966654175,-510.82085525,0.00019974,2]
[337694323,1725966654185,-545.35383426,0.00019974,2]
[337694324,1725966654194,-500.0,0.00019974,2]
[337694325,1725966654205,-500.0,0.00019974,2]
[337694326,1725966654215,-500.0,0.00019974,2]
[337694327,1725966654226,-500.0,0.00019974,2]
[337694328,1725966654238,-500.0,0.00019974,2]
[337694329,1725966654250,-508.49235309,0.00019974,2]
[337694330,1725966654262,-500.0,0.00019974,2]
[337694331,1725966654272,-500.0,0.00019974,2]
[337694332,1725966654282,-579.31465795,0.00019974,2]
[337694333,1725966654291,-507.87942619,0.00019974,2]
[337694334,1725966654300,-548.27,0.00019974,2]
[337694335,1725966654310,-500.0,0.00019974,2]
[337694336,1725966654319,-506.47710884,0.00019974,2]
[337694337,1725966654329,-500.0,0.00019974,2]
[337694338,1725966654339,-500.0,0.00019974,2]
[337694339,1725966654349,-500.0,0.00019974,2]
[337694340,1725966654362,-850.16,0.00019974,2]
[337694341,1725966654372,-502.08456567,0.00019974,2]
[337694342,1725966654382,-1151.51,0.00019974,2]
[337694343,1725966654392,-500.0,0.00019974,2]
[337694344,1725966654402,-500.0,0.00019974,2]
[337694345,1725966654411,-500.0,0.00019974,2]
[337694346,1725966654421,-454.50524771,0.00019974,2]
[337694347,1725966654430,-500.0,0.00019974,2]
[337694348,1725966654440,-500.0,0.00019974,2]
[337694349,1725966654450,-503.46603814,0.00019974,2]
[337694350,1725966654459,-500.0,0.00019974,2]
[337694351,1725966654468,-277.66,0.00019974,2]
[337694352,1725966654478,-1355.41,0.00019974,2]
[337694353,1725966654487,-500.0,0.00019974,2]
[337694354,1725966654496,-500.0,0.00019974,2]
[337694355,1725966654506,-500.0,0.00019974,2]
[337694356,1725966654515,-500.0,0.00019974,2]
[337694357,1725966654524,-1484.15,0.00019974,2]
[337694358,1725966654534,-500.0,0.00019974,2]
[337694359,1725966654544,-500.0,0.00019974,2]
[337694360,1725966654553,-544.41202657,0.00019974,2]
[337694361,1725966654563,-501.35,0.00019974,2]
[337694362,1725966654573,-697.6,0.00019974,2]
[337694363,1725966654582,-500.0,0.00019974,2]
[337694364,1725966654592,-500.0,0.00019974,2]
[337694365,1725966654602,-500.0,0.00019974,2]
[337694366,1725966654611,-582.88,0.00019974,2]
[337694367,1725966654621,-500.0,0.00019974,2]
[337694368,1725966654631,-574.97,0.00019974,2]
[337694369,1725966654641,-500.0,0.00019974,2]
[337694370,1725966654651,-500.0,0.00019974,2]
[337694371,1725966654660,-611.88,0.00019974,2]
[337694372,1725966654670,-511.82,0.00019974,2]
[337694373,1725966654680,-500.0,0.00019974,2]
[337694374,1725966654689,-500.0,0.00019974,2]
[337694375,1725966654699,-500.0,0.00019974,2]
[337694376,1725966654709,-500.0,0.00019974,2]
[337694377,1725966654718,-500.0,0.00019974,2]
[337694378,1725966654727,-500.0,0.00019974,2]
[337694379,1725966654737,-1617.28,0.00019974,2]
[337694380,1725966654747,-657.57,0.00019974,2]
[337694381,1725966654757,-500.0,0.00019974,2]
[337694382,1725966654767,-500.0,0.00019974,2]
[337694383,1725966654777,-500.0,0.00019974,2]
[337694384,1725966654786,-500.0,0.00019974,2]
[337694385,1725966654796,-731.18,0.00019974,2]
[337694386,1725966654805,-500.0,0.00019974,2]
[337694387,1725966654815,-500.0,0.00019974,2]
[337694388,1725966654824,-500.0,0.00019974,2]
[337694389,1725966654833,-221.07511085,0.00019974,2]
[337694390,1725966654843,-1486.82,0.00019974,2]
[337694391,1725966654853,-500.0,0.00019974,2]
[337694392,1725966654863,-719.42,0.00019974,2]
[337694393,1725966654874,-500.0,0.00019974,2]
[337694394,1725966654883,-500.0,0.00019974,2]
[337694395,1725966654893,-500.0,0.00019974,2]
[337694396,1725966654902,-569.69,0.00019974,2]
[337694397,1725966654912,-500.0,0.00019974,2]
[337694398,1725966654921,-500.0,0.00019974,2]
[337694399,1725966654930,-500.0,0.00019974,2]
[337694400,1725966654940,-521.6,0.00019974,2]
[337694401,1725966654951,-500.0,0.00019974,2]
[337694402,1725966654961,-500.0,0.00019974,2]
[337694403,1725966654970,-595.38,0.00019974,2]
[337694404,1725966654979,-500.0,0.00019974,2]
[337694405,1725966654989,-1111.64,0.00019974,2]
[337694406,1725966654998,-500.0,0.00019974,2]
[337694407,1725966655007,-500.0,0.00019974,2]
[337694408,1725966655016,-500.0,0.00019974,2]
[337694409,1725966655026,-500.0,0.00019974,2]
[337694410,1725966655035,-1052.4,0.00019974,2]
[337694411,1725966655045,-1560.56,0.00019974,2]
[337694412,1725966655054,-500.0,0.00019974,2]
[337694413,1725966655064,-671.66,0.00019974,2]
[337694414,1725966655073,-337.12604523,0.00019974,2]
[337694415,1725966655082,-500.0,0.00019974,2]
[337694416,1725966655091,-515.63751268,0.00019974,2]
[337694417,1725966655102,-500.0,0.00019974,2]
[337694418,1725966655112,-500.0,0.00019974,2]
[337694419,1725966655122,-1717.73,0.00019974,2]
[337694420,1725966655131,-500.0,0.00019974,2]
[337694421,1725966655140,-500.0,0.00019974,2]
[337694422,1725966655149,-505.9266985,0.00019974,2]
[337694423,1725966655159,-500.0,0.00019974,2]
[337694424,1725966655169,-257.184138,0.00019974,2]
[337694425,1725966655178,-500.0,0.00019974,2]
[337694426,1725966655187,-257.184148,0.00019974,2]
[337694427,1725966655197,-751.08,0.00019974,2]
[337694428,1725966655206,-500.0,0.00019974,2]
[337694429,1725966655216,-500.0,0.00019974,2]
[337694430,1725966655226,-500.0,0.00019974,2]
[337694431,1725966655238,-500.0,0.00019974,2]
[337694432,1725966655249,-500.0,0.00019974,2]
[337694433,1725966655259,-2139.61,0.00019974,2]
[337694434,1725966655268,-500.0,0.00019974,2]
[337694435,1725966655277,-500.0,0.00019974,2]
[337694436,1725966655286,-1028.0,0.00019974,2]
[337694437,1725966655296,-500.0,0.00019974,2]
[337694438,1725966655305,-500.0,0.00019974,2]
[337694439,1725966655314,-501.16887403,0.00019974,2]
[337694440,1725966655324,-644.07,0.00019974,2]
[337694441,1725966655333,-880.62,0.00019974,2]
[337694442,1725966655342,-500.0,0.00019974,2]
[337694443,1725966655352,-500.0,0.00019974,2]
[337694444,1725966655361,-625.64,0.00019974,2]
[337694445,1725966655370,-500.0,0.00019974,2]
[337694446,1725966655380,-500.0,0.00019974,2]
[337694447,1725966655390,-500.0,0.00019974,2]
[337694448,1725966655399,-854.32,0.00019974,2]
[337694449,1725966655409,-500.0,0.00019974,2]
[337694450,1725966655419,-500.0,0.00019974,2]
[337694451,1725966655428,-500.0,0.00019974,2]
[337694452,1725966655438,-500.0,0.00019974,2]
[337694453,1725966655449,-2020.12,0.00019974,2]
[337694454,1725966655458,-4656.91,0.00019974,2]
[337694455,1725966655467,-500.0,0.00019974,2]
[337694456,1725966655477,-500.0,0.00019974,2]
[337694457,1725966655486,-500.0,0.00019974,2]
[337694458,1725966655496,-1716.36,0.00019974,2]
[337694459,1725966655505,-500.0,0.00019974,2]
[337694460,1725966655514,-500.0,0.00019974,2]
[337694461,1725966655524,-500.0,0.00019974,2]
[337694462,1725966655534,-222.826076,0.00019974,2]
[337694463,1725966655544,-500.0,0.00019974,2]
[337694464,1725966655553,-500.0,0.00019974,2]
[337694465,1725966655563,-1000.75,0.00019974,2]
[337694466,1725966655573,-222.82607,0.00019974,2]
[337694467,1725966655582,-542.19,0.00019974,2]
[337694468,1725966655592,-2056.98,0.00019974,2]
[337694469,1725966655602,-500.0,0.00019974,2]
[337694470,1725966655613,-1658.7,0.00019974,2]
[337694471,1725966655625,-500.0,0.00019974,2]
[337694472,1725966655636,-2166.61,0.00019974,2]
[337694473,1725966655646,-3621.59,0.00019974,2]
[337694474,1725966655656,-500.0,0.00019974,2]
[337694475,1725966655667,-1104.35,0.00019974,2]
[337694476,1725966655676,-500.0,0.00019974,2]
[337694477,1725966655686,-518.7,0.00019974,2]
[337694478,1725966655696,-485.47310884,0.00019974,2]
[337694479,1725966655707,-739.68,0.00019974,2]
[337694480,1725966655718,-998.55,0.00019974,2]
[337694481,1725966655727,-500.0,0.00019974,2]
[337694482,1725966655739,-500.0,0.00019974,2]
[337694483,1725966655750,-500.0,0.00019974,2]
[337694484,1725966655759,-1575.5,0.00019974,2]
[337694485,1725966655768,-500.0,0.00019974,2]
[337694486,1725966655778,-4763.96,0.00019974,2]
[337694487,1725966655788,-590.8,0.00019974,2]
[337694488,1725966655797,-1180.7,0.00019974,2]
[337694489,1725966655806,-747.92,0.00019974,2]
[337694490,1725966655815,-500.0,0.00019974,2]
[337694491,1725966655825,-500.0,0.00019974,2]
[337694492,1725966655835,-1124.84,0.00019974,2]
[337694493,1725966655845,-500.0,0.00019974,2]
[337694494,1725966655854,-504.32514012,0.00019974,2]
[337694495,1725966655864,-683.72,0.00019974,2]
[337694496,1725966655875,-500.0,0.00019974,2]
[337694497,1725966655885,-500.0,0.00019974,2]
[337694498,1725966655894,-500.0,0.00019974,2]
[337694499,1725966655904,-1639.68,0.00019974,2]
[337694500,1725966655915,-500.0,0.00019974,2]
[337694501,1725966655925,-535.5348318,0.00019974,2]
[337694502,1725966655934,-3664.68,0.00019974,2]
[337694503,1725966655944,-305.02659661,0.00019974,2]
[337694504,1725966655954,-1503.94,0.00019974,2]
[337694505,1725966655964,-648.36,0.00019974,2]
[337694506,1725966655974,-500.0,0.00019974,2]
[337694507,1725966655984,-500.0,0.00019974,2]
[337694508,1725966655995,-1275.97,0.00019974,2]
[337694509,1725966656005,-500.0,0.00019974,2]
[337694510,1725966656014,-500.0,0.00019974,2]
[337694511,1725966656026,-641.83,0.00019974,2]
[337694512,1725966656160,-1929.8,0.00019974,2]
[337694513,1725966656171,-500.0,0.00019974,2]
[337694514,1725966656182,-500.0,0.00019974,2]
[337694515,1725966656192,-823.78,0.00019974,2]
[337694516,1725966656202,-500.0,0.00019974,2]